[Event "KAZ-ch Women 2019"]
[Site "Almaty"]
[Date "2019.04.23"]
[Round "3.4"]
[White "Shauken, Aruzhan"]
[Black "Dauletova, Gulmira"]
[Result "0-1"]
[ECO "E04"]
[WhiteElo "1685"]
[BlackElo "2262"]
[Annotator "NA"]
[PlyCount "72"]
[EventDate "2019.04.21"]
[EventType "tourn"]
[EventCountry "KAZ"]
[SourceTitle "playchess.com"]
[Source "ChessBase"]
[SourceQuality "1"]
[TimeControl "40/5400+30:1800+30"]

1. d4 {[%emt 0:00:00]} Nf6 {[%emt 0:05:46]} 2. c4 {[%emt 0:00:00]} e6 {[%emt 0:00:14]} 3. g3 {[%emt 0:00:00]} d5 {[%emt 0:00:22]} 4. Nf3 {[%emt 0:00:09]} dxc4 {[%emt 0:00:08]} 5. Bg2 {[%emt 0:00:12]} a6 {[%emt 0:00:18]} 6. O-O {[%emt 0:05:59]} Nc6 {[%emt 0:00:22]} 7. Bg5 {[%emt 0:07:03]} Be7 {[%emt 0:00:09]} 8. e3 {[%emt 0:00:33]} Bd7 {[%emt 0:00:21]} 9. Nbd2 {[%emt 0:01:12]} b5 {[%emt 0:01:09]} 10. a4 {[%emt 0:06:02]} Rb8 {[%emt 0:04:51]} 11. axb5 {[%emt 0:02:49]} axb5 {[%emt 0:00:03]} 12. Ne5 {[%emt 0:06:00]} Nxe5 {[%emt 0:16:26]} 13. dxe5 {[%emt 0:00:07]} Nd5 {[%emt 0:00:06]} 14. Bxe7 {[%emt 0:00:20]} Qxe7 {[%emt 0:02:50]} 15. b3 {[%emt 0:11:47]} c3 {[%emt 0:06:46]} 16. Nb1 {[%emt 0:00:36]} Qc5 {[%emt 0:01:47]} 17. Qg4 {[%emt 0:06:30]} g6 {[%emt 0:09:21]} 18. Rc1 {[%emt 0:10:02]} b4 {[%emt 0:05:14]} 19. Nd2 {[%emt 0:04:51]} f5 {[%emt 0:06:29]} 20. exf6 {[%emt 0:02:57]} Nxf6 {[%emt 0:00:24]} 21. Ne4 {[%emt 0:05:46]} Nxe4 {[%emt 0:17:19]} 22. Bxe4 {[%emt 0:00:40]} Rf8 {[%emt 0:00:09]} 23. Rd1 {[%emt 0:07:24]} Rf7 {[%emt 0:00:18]} 24. Ra6 {[%emt 0:07:14]} Kf8 {[%emt 0:02:43]} 25. Rxd7 {[%emt 0:10:36]} Rxd7 {[%emt 0:00:08]} 26. Qxe6 {[%emt 0:00:54]} Rd6 {[%emt 0:00:35]} 27. Rxd6 {[%emt 0:01:06]} Qxd6 {[%emt 0:00:02]} 28. Qc4 {[%emt 0:01:15]} Rd8 {[%emt 0:00:31]} 29. Kg2 {[%emt 0:00:22]} Qe7 {[%emt 0:01:23]} 30. h4 {[%emt 0:01:30]} Rd2 {[%emt 0:01:05]} 31. Qc6 {[%emt 0:00:55]} Qf7 {[%emt 0:02:50]} 32. Bf3 {[%emt 0:00:02]} c2 {[%emt 0:01:17]} 33. Qc5+ {[%emt 0:00:34]} Qe7 {[%emt 0:01:35]} 34. Qc4 {[%emt 0:00:35]} c5 {[%emt 0:01:24]} 35. Be4 {[%emt 0:00:51]} c1=Q {[%emt 0:00:20]} 36. Qxc1 {[%emt 0:00:20]} Qxe4+ {[%emt 0:00:05]} 0-1

[Event "KAZ-ch Women 2019"]
[Site "Almaty"]
[Date "2019.04.23"]
[Round "3.5"]
[White "Kairbekova, Amina"]
[Black "Davletbayeva, Madina"]
[Result "1/2-1/2"]
[ECO "C55"]
[WhiteElo "1954"]
[BlackElo "2286"]
[Annotator "NA"]
[PlyCount "65"]
[EventDate "2019.04.21"]
[EventType "tourn"]
[EventCountry "KAZ"]
[SourceTitle "playchess.com"]
[Source "ChessBase"]
[SourceQuality "1"]
[TimeControl "40/5400+30:1800+30"]

1. e4 {[%emt 0:00:00]} e5 {[%emt 0:00:09]} 2. Nf3 {[%emt 0:00:00]} Nc6 {[%emt 0:00:11]} 3. d4 {[%emt 0:00:00]} exd4 {[%emt 0:00:09]} 4. Bc4 {[%emt 0:00:00]} Nf6 {[%emt 0:02:09]} 5. Ng5 {[%emt 0:00:00]} d5 {[%emt 0:02:25]} 6. exd5 {[%emt 0:00:00]} Qe7+ {[%emt 0:01:02]} 7. Kf1 {[%emt 0:00:11]} Ne5 {[%emt 0:01:35]} 8. Qxd4 {[%emt 0:00:06]} Nxc4 {[%emt 0:08:51]} 9. Qxc4 {[%emt 0:00:09]} Qc5 {[%emt 0:10:12]} 10. Qe2+ {[%emt 0:10:47]} Be7 {[%emt 0:01:45]} 11. c4 {[%emt 0:00:53]} b5 {[%emt 0:10:01]} 12. b3 {[%emt 0:06:56]} O-O {[%emt 0:05:01]} 13. Ba3 {[%emt 0:05:59]} b4 {[%emt 0:00:33]} 14. Bb2 {[%emt 0:00:01]} Bf5 {[%emt 0:03:43]} 15. Nd2 {[%emt 0:06:19]} Rfe8 {[%emt 0:06:20]} 16. Nge4 {[%emt 0:02:08]} Nxe4 {[%emt 0:09:11]} 17. Nxe4 {[%emt 0:00:05]} Bxe4 {[%emt 0:01:23]} 18. Qxe4 {[%emt 0:00:04]} Bf6 {[%emt 0:01:19]} 19. Qc2 {[%emt 0:00:05]} Bxb2 {[%emt 0:00:30]} 20. Qxb2 {[%emt 0:00:03]} c6 {[%emt 0:01:15]} 21. dxc6 {[%emt 0:00:24]} Qxc6 {[%emt 0:00:59]} 22. h4 {[%emt 0:00:04]} Rad8 {[%emt 0:05:42]} 23. Rh3 {[%emt 0:02:12]} Qe4 {[%emt 0:01:03]} 24. Kg1 {[%emt 0:07:05]} Qf4 {[%emt 0:04:13]} 25. c5 {[%emt 0:09:29]} Rd2 {[%emt 0:04:05]} 26. Rf3 {[%emt 0:00:01]} Qh6 {[%emt 0:00:48]} 27. Qc1 {[%emt 0:01:48]} Rxa2 {[%emt 0:07:52]} 28. Re3 {[%emt 0:00:11]} Rxe3 {[%emt 0:00:30]} 29. Rxa2 {[%emt 0:00:05]} Rc3 {[%emt 0:01:27]} 30. Qxh6 {[%emt 0:03:18]} gxh6 {[%emt 0:00:05]} 31. Rxa7 {[%emt 0:00:03]} Rxb3 {[%emt 0:00:09]} 32. Rb7 {[%emt 0:00:48]} Rc3 {[%emt 0:00:42]} 33. Rxb4 1/2-1/2

[Event "KAZ-ch Women 2019"]
[Site "Almaty"]
[Date "2019.04.24"]
[Round "4.3"]
[White "Nasybullina, Alfia"]
[Black "Shauken, Aruzhan"]
[Result "1-0"]
[ECO "C07"]
[WhiteElo "2065"]
[BlackElo "1685"]
[Annotator "NA RC"]
[PlyCount "61"]
[EventDate "2019.04.21"]
[EventType "tourn"]
[EventCountry "KAZ"]
[SourceTitle "playchess.com"]
[Source "ChessBase"]
[SourceQuality "1"]
[TimeControl "40/5400+30:1800+30"]

1. e4 {[%emt 0:06:29]} e6 {[%emt 0:00:00]} 2. d4 {[%emt 0:00:05]} d5 {[%emt 0:00:00]} 3. Nd2 {[%emt 0:00:05]} c5 {[%emt 0:00:09]} 4. exd5 {[%emt 0:00:06]} Qxd5 {[%emt 0:00:19]} 5. Ngf3 {[%emt 0:00:06]} cxd4 {[%emt 0:00:08]} 6. Bc4 {[%emt 0:00:06]} Qd6 {[%emt 0:00:15]} 7. O-O {[%emt 0:00:07]} Nf6 {[%emt 0:00:09]} 8. Nb3 {[%emt 0:00:05]} Nc6 {[%emt 0:00:08]} 9. Nbxd4 {[%emt 0:00:08]} Nxd4 {[%emt 0:00:05]} 10. Nxd4 {[%emt 0:00:08]} a6 {[%emt 0:00:11]} 11. Re1 {[%emt 0:00:07]} Qc7 {[%emt 0:00:23]} 12. Bf1 {[%emt 0:00:08] C07: French Tarrasch: 3...c5, 4 Ngf3 and 4 exd5 Qxd5} Be7 {[%emt 0:05:45]} 13. Qf3 {[%emt 0:00:27]} O-O {[%emt 0:02:14]} 14. Bf4 {[%emt 0:01:42]} Qb6 {[%emt 0:01:07]} (14... Bd6 15. Bxd6 Qxd6 16. Rad1 Qc7 17. c4 Rb8 18. Qg3 Qxg3 19. hxg3 Bd7 {½-½ (61) Karjakin,S (2773)-Duda,J (2737) chess.com INT 2018}) 15. Rad1 {[%emt 0:02:59]} Bd7 $146 {[%emt 0:07:32]} ({Predecessor:} 15... Rd8 16. Nf5 Bf8 17. Rxd8 Qxd8 18. Rd1 Bd7 19. Bg5 exf5 20. Bxf6 {0-1 (52) Serna,J (2036)-Ruiz Castillo,J (2374) Brownsville 2016}) 16. b3 {[%emt 0:03:49]} Rac8 {[%emt 0:01:55]} 17. c4 {[%emt 0:00:31]} Bc5 {[%emt 0:02:16]} 18. Be5 {[%emt 0:00:47]} Ne8 {[%emt 0:02:01]} 19. Nc2 {[%emt 0:18:01]} Bc6 {[%emt 0:00:25]} 20. Qg3 {[%emt 0:00:09]} a5 {[%emt 0:09:29]} 21. a3 {[%emt 0:02:44]} f6 {[%emt 0:12:38]} 22. Ba1 {[%emt 0:02:42]} Nc7 {[%emt 0:06:17]} 23. b4 {[%emt 0:00:29]} axb4 {[%emt 0:03:45]} 24. axb4 {[%emt 0:00:05]} Be7 {[%emt 0:01:44]} 25. Bd4 {[%emt 0:00:44]} Qa6 {[%emt 0:00:19]} 26. b5 {[%emt 0:00:49]} Qa4 {[%emt 0:00:11]} 27. bxc6 {[%emt 0:00:24]} Qxc2 {[%emt 0:00:33]} (27... Qxc6 $142 28. Bd3 Bd6) 28. cxb7 {[%emt 0:00:09]} Rcd8 {[%emt 0:00:33]} 29. Qxc7 {[%emt 0:01:40]} Bb4 $18 {[%emt 0:01:20]} 30. Bxf6 {[%emt 0:02:49]} Rxf6 {[%emt 0:01:32]} 31. Rxd8+ {[%emt 0:00:11]} 1-0

[Event "KAZ-ch Women 2019"]
[Site "Almaty"]
[Date "2019.04.24"]
[Round "4.5"]
[White "Nakhbayeva, Guliskhan"]
[Black "Sultanbek, Zeinep"]
[Result "1-0"]
[ECO "E71"]
[WhiteElo "2303"]
[BlackElo "1891"]
[Annotator "NA RC"]
[PlyCount "81"]
[EventDate "2019.04.21"]
[EventType "tourn"]
[EventCountry "KAZ"]
[SourceTitle "playchess.com"]
[Source "ChessBase"]
[SourceQuality "1"]
[TimeControl "40/5400+30:1800+30"]

1. d4 {[%emt 0:00:00]} Nf6 {[%emt 0:00:00]} 2. c4 {[%emt 0:00:00]} g6 {[%emt 0:00:00]} 3. Nc3 {[%emt 0:00:44]} Bg7 {[%emt 0:00:00]} 4. e4 {[%emt 0:00:43]} d6 {[%emt 0:00:00]} 5. h3 {[%emt 0:00:46]} O-O {[%emt 0:00:07]} 6. Bg5 {[%emt 0:00:01]} c5 {[%emt 0:00:06]} 7. d5 {[%emt 0:00:32]} e6 {[%emt 0:00:07]} 8. Bd3 {[%emt 0:01:09]} exd5 {[%emt 0:00:08]} 9. exd5 {[%emt 0:00:39]} Nbd7 {[%emt 0:00:06]} 10. Nf3 {[%emt 0:00:33]} Re8+ {[%emt 0:01:03]} 11. Kf1 {[%emt 0:00:03]} a6 {[%emt 0:07:37]} 12. a4 {[%emt 0:00:50]} Ne5 {[%emt 0:09:07] E71: King's Indian: 4 e4 d6 5 h3} (12... h6 13. Be3 Ne5 14. Nxe5 Rxe5 15. Qd2 Qf8 16. g4 Nh7 17. Bf4 f5 18. Bxe5 Bxe5 19. Qe2 Kg7 20. gxf5 Bxf5 {1-0 (51) Aleksandrov,A (2607)-Belozerov,A (2523) Pavlodar 2012}) 13. Nxe5 {[%emt 0:00:17]} Rxe5 {[%emt 0:00:10]} 14. Qd2 {[%emt 0:00:16]} Bf5 {[%emt 0:00:48]} 15. Bxf5 {[%emt 0:01:56]} Rxf5 {[%emt 0:00:06]} 16. Re1 {[%emt 0:12:50]} h6 $146 {[%emt 0:07:34]} ({Predecessor:} 16... Qb6 17. g4 Rxg5 18. Qxg5 Qxb2 19. Re3 Nd7 20. Ne4 {1-0 (77) Sotnikov,I (2440)-Filippov,V (2455) Moscow 1995}) 17. Bxh6 {[%emt 0:02:08]} Bxh6 {[%emt 0:00:20]} 18. Qxh6 {[%emt 0:00:05]} Nh5 {[%emt 0:01:25]} 19. Kg1 {[%emt 0:23:27]} Qh4 {[%emt 0:17:41]} 20. Qd2 {[%emt 0:03:50]} ({Worse is} 20. Ne4 Re5 $17) 20... Rf4 {[%emt 0:02:11]} 21. g4 {[%emt 0:15:14]} Qg5 {[%emt 0:40:15]} 22. Ne4 {[%emt 0:02:33] Double Attack} Rxe4 {[%emt 0:02:41]} 23. Qxg5 {[%emt 0:00:10]} Rxe1+ {[%emt 0:00:02]} 24. Kg2 {[%emt 0:00:17]} Re5 {[%emt 0:00:06]} 25. Qd2 {[%emt 0:05:29]} Nf6 {[%emt 0:00:38]} 26. Re1 {[%emt 0:02:32]} Rae8 {[%emt 0:01:01]} 27. Rxe5 {[%emt 0:00:10]} Rxe5 {[%emt 0:00:04]} 28. b4 {[%emt 0:05:20]} Ne4 {[%emt 0:01:09]} 29. Qb2 {[%emt 0:01:57]} cxb4 {[%emt 0:00:08]} 30. Qxb4 {[%emt 0:00:20]} Re7 {[%emt 0:00:04]} 31. Qb6 {[%emt 0:00:47]} Rd7 {[%emt 0:00:16]} 32. Qa7 {[%emt 0:01:17]} Nc5 {[%emt 0:00:18]} 33. Qb8+ {[%emt 0:00:29]} Kg7 {[%emt 0:00:21]} 34. Qe8 {[%emt 0:00:27]} g5 {[%emt 0:00:41]} 35. a5 {[%emt 0:00:30]} Kf6 {[%emt 0:00:19]} 36. Qh8+ {[%emt 0:02:46]} Ke7 {[%emt 0:00:11]} 37. Qg7 $18 {[%emt 0:00:16]} Kd8 {[%emt 0:00:30]} 38. Qxg5+ {[%emt 0:00:18]} Re7 {[%emt 0:00:04]} 39. h4 {[%emt 0:00:36]} Ne4 {[%emt 0:00:36]} 40. Qg8+ {[%emt 0:00:00]} Kd7 {[%emt 0:00:00]} 41. h5 {[%emt 0:01:19]} 1-0

[Event "KAZ-ch Women 2019"]
[Site "Almaty"]
[Date "2019.04.25"]
[Round "5.1"]
[White "Sultanbek, Zeinep"]
[Black "Kamalidenova, Meruert"]
[Result "0-1"]
[ECO "E67"]
[WhiteElo "1891"]
[BlackElo "2051"]
[Annotator "NA RC"]
[PlyCount "108"]
[EventDate "2019.04.21"]
[EventType "tourn"]
[EventCountry "KAZ"]
[SourceTitle "playchess.com"]
[Source "ChessBase"]
[SourceQuality "1"]
[TimeControl "40/5400+30:1800+30"]

{[%evp 13,108,33,31,32767,32767,32767,32767,32767,32767,32767,-2,15,25,14,0,0,19,-10,-3,-4,0,-55,-37,-16,-14,-40,-31,-16,-23,-177,-191,32767,-268,-258,-275,-262,-243,-237,0,0,0,0,0,0,0,-19,-35,-52,-43,-147,-177,-228,-245,-230,-240,-242,32767,32767,32767,32767,32767,-243,32767,32767,32767,32767,-219,-206,32767,32767,32767,32767,32767,32767,32767,32767,32767,32767,-379,32767,32767,32767,32767,32767,32767,32767,32767,32767,-1300,-1223,-1850,-1823,-5310,-4806,-5314,-29976,-29974]} 1. d4 {[%emt 0:00:00]} Nf6 {[%emt 0:00:00]} 2. Nf3 {[%emt 0:00:00]} g6 {[%emt 0:00:00]} 3. c4 {[%emt 0:00:00]} Bg7 {[%emt 0:00:00]} 4. g3 {[%emt 0:00:09]} O-O {[%emt 0:00:00]} 5. Bg2 {[%emt 0:00:06]} d6 {[%emt 0:00:00]} 6. O-O {[%emt 0:00:04]} Nbd7 {[%emt 0:00:04]} 7. Nc3 {[%emt 0:01:44]} e5 {[%emt 0:00:23]} 8. Qd2 {[%emt 0:05:24] E67: King's Indian: Fianchetto: 6...Nbd7} (8. e4 exd4 9. Nxd4 Nc5 10. h3 Re8 11. Re1 Bd7 12. Rb1 h6 13. b4 Ne6 14. Nxe6 Bxe6 15. Nd5 a5 16. a3 axb4 17. axb4 Nxd5 18. cxd5 Bd7 19. Bb2 Bxb2 20. Rxb2 Qf6 {½-½ (30) Howell,D (2693)-Ganguly,S (2633) Astana 2019}) 8... Re8 {[%emt 0:04:59]} 9. b3 {[%emt 0:01:20]} exd4 {[%emt 0:01:39]} 10. Nxd4 {[%emt 0:00:13]} Nc5 {[%emt 0:00:14]} 11. Bb2 {[%emt 0:00:58]} a5 {[%emt 0:04:01]} 12. Rad1 {[%emt 0:01:00]} Bd7 {[%emt 0:03:49]} 13. Ncb5 $146 {[%emt 0:15:55]} ({Predecessor:} 13. Rfe1 Nfe4 14. Nxe4 Nxe4 15. Qc2 f5 16. e3 Qe7 17. Ne2 Bc6 {½-½ (76) Lim,Z (2164)-Galliano,A (2101) Crawley 2013}) 13... h5 {[%emt 0:08:00]} 14. Qf4 {[%emt 0:06:38]} Nfe4 {[%emt 0:08:40]} 15. Nc3 {[%emt 0:03:52]} (15. f3 $5 {[%cal Rf3e4]} Nf6 16. e4 $11) 15... Nxc3 {[%emt 0:09:39]} 16. Bxc3 {[%emt 0:00:21]} Qe7 {[%emt 0:02:25]} 17. Nb5 {[%emt 0:08:16]} Bxb5 {[%emt 0:03:11]} 18. Bxg7 {[%emt 0:00:18]} Kxg7 {[%emt 0:00:05]} 19. cxb5 {[%emt 0:00:05]} Qxe2 {[%emt 0:00:59]} 20. b6 {[%emt 0:00:34]} Qe5 {[%emt 0:06:31]} 21. Qc4 {[%emt 0:10:24]} (21. bxc7 $15 Qxf4 22. gxf4) 21... c6 {[%emt 0:02:53]} ({Don't do} 21... cxb6 22. Qb5 $15) 22. f4 {[%emt 0:04:56]} Qe3+ {[%emt 0:04:29]} 23. Kh1 {[%emt 0:00:06]} d5 {[%emt 0:02:49]} 24. Qc2 {[%emt 0:01:31]} Ne4 {[%emt 0:01:27]} 25. f5 {[%emt 0:01:04]} h4 $2 {[%emt 0:02:33]} (25... g5 $19 26. f6+ Kh6) 26. gxh4 {[%emt 0:04:01]} Qh6 {[%emt 0:04:15]} 27. fxg6 {[%emt 0:01:20]} fxg6 {[%emt 0:01:28]} 28. Bxe4 {[%emt 0:08:31]} Rxe4 {[%emt 0:00:13]} 29. Qf2 {[%emt 0:00:02]} Qxh4 {[%emt 0:05:13]} 30. Qf7+ {[%emt 0:01:41] Double Attack} Kh6 {[%emt 0:01:05]} 31. Rd2 {[%emt 0:07:37] [#]} (31. Rg1 $15 Rg4 32. Rxg4 Qxg4 33. Re1) 31... Re1 $1 {[%emt 0:04:04]} 32. Rg2 {[%emt 0:01:48]} (32. Rdf2 {was necessary.} Rae8 33. Qf3) 32... Rxf1+ {[%emt 0:00:27]} 33. Qxf1 {[%emt 0:00:06]} Re8 {[%emt 0:00:48]} 34. Rg3 {[%emt 0:03:33]} Qe4+ {[%emt 0:00:55]} 35. Kg1 {[%emt 0:00:07]} Qd4+ {[%emt 0:01:46]} 36. Kh1 {[%emt 0:00:09]} Qe4+ {[%emt 0:02:41]} 37. Kg1 {[%emt 0:00:06]} Qe1 {[%emt 0:00:38]} 38. Rf3 {[%emt 0:01:36]} Qxf1+ {[%emt 0:01:12]} 39. Kxf1 {[%emt 0:00:03]} Kg7 {[%emt 0:00:09]} 40. Rc3 {[%emt 0:00:00]} Kf7 {[%emt 0:00:00]} 41. Kf2 {[%emt 0:00:56]} Rh8 {[%emt 0:06:27]} 42. Kg3 {[%emt 0:00:23]} Ke7 {[%emt 0:00:43]} 43. h3 {[%emt 0:01:35]} Kd6 {[%emt 0:00:26]} 44. Kg4 {[%emt 0:00:05]} Rh5 {[%emt 0:01:32]} 45. Rf3 {[%emt 0:01:07]} Re5 {[%emt 0:03:51]} 46. Rf6+ {[%emt 0:04:10]} Re6 {[%emt 0:00:02]} 47. Rf7 {[%emt 0:00:07]} Re7 {[%emt 0:00:05]} 48. Rf6+ {[%emt 0:00:03]} Kc5 {[%emt 0:01:02]} 49. Rxg6 {[%emt 0:00:05]} d4 {[%emt 0:00:08]} 50. Rf6 {[%emt 0:01:46]} d3 {[%emt 0:00:34]} 51. Rf1 {[%emt 0:02:21]} Kd4 {[%emt 0:00:20]} 52. h4 {[%emt 0:00:05]} d2 {[%emt 0:00:10]} 53. Rd1 {[%emt 0:00:03]} Kd3 $19 {[%emt 0:00:06]} 54. h5 {[%emt 0:00:06]} Kc2 {[%emt 0:00:19]} 0-1

[Event "KAZ-ch Women 2019"]
[Site "Almaty"]
[Date "2019.04.25"]
[Round "5.3"]
[White "Shauken, Aruzhan"]
[Black "Ankudinova, Yelena"]
[Result "0-1"]
[ECO "D23"]
[WhiteElo "1685"]
[BlackElo "2099"]
[Annotator "NA RC"]
[PlyCount "148"]
[EventDate "2019.04.21"]
[EventType "tourn"]
[EventCountry "KAZ"]
[SourceTitle "playchess.com"]
[Source "ChessBase"]
[SourceQuality "1"]
[TimeControl "40/5400+30:1800+30"]

{[%evp 8,148,-10,32767,32767,32767,32767,32767,32767,32767,32767,32767,32767,32767,-77,-87,-113,-71,-92,-156,-154,-160,-166,-167,-45,-142,-143,-138,-135,32767,-151,-151,-125,-163,-155,-154,-131,-139,-136,-176,-189,-189,-193,-189,-139,-191,-198,-144,-146,-155,-77,-147,-146,-135,-96,-98,0,-152,-154,-203,-200,32767,32767,32767,32767,-225,32767,32767,32767,32767,32767,-351,-366,-201,-372,-393,-370,-347,-406,32767,-368,-262,32767,32767,-387,-492,-370,-358,-431,-737,-579,-451,-516,-566,-572,-458,-730,-633,-170,-219,-65,-145,-204,-548,-8,-99,32767,-110,-55,32767,32767,-838,-5057,-1618,-6614,-1971,-7321,-5073,-5300,-5300,-5747,-5065,-29973,-6575,-29977,-6582,-1695,-29981,-29982,-29983,-29974,-29978,-10509,-5057,0,-29972,-9706,-5064,-5270,-10802,-5110,-5142,-5121]} 1. d4 {[%emt 0:00:00]} d5 {[%emt 0:00:00]} 2. c4 {[%emt 0:00:00]} dxc4 {[%emt 0:00:00]} 3. Nf3 {[%emt 0:00:10]} Nf6 {[%emt 0:00:03]} 4. g3 {[%emt 0:00:31]} Nc6 {[%emt 0:00:19]} 5. Bg2 {[%emt 0:02:20]} e5 {[%emt 0:00:30]} 6. Nxe5 {[%emt 0:12:28] D23: Queen's Gambit Accepted: 3 Nf3 Nf6 sidelines} (6. Qa4 Bd7 7. Qxc4 Be6 8. Qa4 e4 9. Ng5 Qxd4 10. Qc2 Nb4 11. Qa4+ Qd7 12. Qxd7+ Bxd7 {0-1 (67) Ezat,M (2466)-Moradiabadi,E (2598) Tromsoe 2014}) 6... Nxe5 {[%emt 0:00:24]} 7. dxe5 {[%emt 0:00:05]} Qxd1+ {[%emt 0:00:11]} 8. Kxd1 {[%emt 0:00:05]} Ng4 {[%emt 0:00:11]} 9. Ke1 {[%emt 0:00:35]} Nxe5 {[%emt 0:00:22]} 10. Bf4 {[%emt 0:01:04]} f6 {[%emt 0:07:36]} 11. Nd2 {[%emt 0:02:09]} Bb4 {[%emt 0:18:51]} 12. Rc1 $146 {[%emt 0:03:14] [#]} ({Predecessor:} 12. Bd5 c6 13. Bxe5 cxd5 {1-0 (38) Wittmann,M (2164)-Huch,R (2239) Bayern 2011}) 12... Be6 $1 {[%emt 0:05:25]} 13. a3 {[%emt 0:21:21] [#]} (13. Bxb7 $142 Rd8 14. Rc2) 13... Ba5 $1 {[%emt 0:07:48]} 14. Kf1 {[%emt 0:02:43]} O-O-O {[%emt 0:04:16]} 15. Ne4 {[%emt 0:01:41]} Ng6 {[%emt 0:10:49]} ({Black should try} 15... Rd5 $19 16. Nc3 Bxc3 17. bxc3 Ra5) 16. Be3 {[%emt 0:05:24]} (16. Nc5 $11 {was the only way to keep the balance.} Bd5 17. Bxd5 Rxd5 18. Rxc4) 16... Bb6 {[%emt 0:00:55]} 17. Bxb6 {[%emt 0:03:04]} axb6 {[%emt 0:00:33]} 18. h4 {[%emt 0:01:02]} h6 {[%emt 0:03:51]} 19. f4 {[%emt 0:05:20]} Rhe8 {[%emt 0:02:19]} 20. h5 {[%emt 0:03:31]} Ne7 {[%emt 0:01:01]} 21. Kf2 {[%emt 0:01:15]} Nc6 {[%emt 0:01:40]} 22. Rhd1 {[%emt 0:06:18]} Nd4 {[%emt 0:02:25]} 23. e3 {[%emt 0:04:35]} Nb3 {[%emt 0:00:16]} 24. Rxd8+ {[%emt 0:00:05]} Rxd8 {[%emt 0:00:22]} 25. Re1 {[%emt 0:00:16]} Bg4 {[%emt 0:06:06]} 26. Bf3 {[%emt 0:02:36]} Bxf3 {[%emt 0:00:27]} 27. Kxf3 {[%emt 0:00:03]} f5 {[%emt 0:03:05]} 28. Nc3 {[%emt 0:00:59]} Rd3 {[%emt 0:01:33]} (28... Rd2 $19 {is more deadly.} 29. Re2 Rd3) 29. Kf2 {[%emt 0:05:33]} (29. g4 $142) 29... Nc5 {[%emt 0:03:27]} 30. Kf3 {[%emt 0:01:23]} Rd2 {[%emt 0:02:27]} 31. Re2 {[%emt 0:00:45]} Rxe2 {[%emt 0:00:28]} ({Black should try} 31... Rd7 $17 32. g4 fxg4+ 33. Kxg4 c6) 32. Kxe2 $2 {[%emt 0:00:06]} (32. Nxe2 $11 Ne6 33. g4) 32... Kd7 {[%emt 0:00:12]} 33. Kf3 {[%emt 0:00:31]} (33. Nb5 $17) 33... Ke6 {[%emt 0:02:49]} 34. g4 {[%emt 0:00:39]} fxg4+ {[%emt 0:00:23]} 35. Kxg4 {[%emt 0:00:04]} Nd3 {[%emt 0:00:27]} 36. Nd1 {[%emt 0:02:29]} b5 {[%emt 0:00:29]} 37. Kf3 {[%emt 0:01:16]} Kd5 {[%emt 0:07:34]} 38. Ke2 {[%emt 0:01:58]} c6 {[%emt 0:03:23]} 39. b4 {[%emt 0:02:25]} Ke4 {[%emt 0:01:57]} 40. Nc3+ {[%emt 0:00:00]} Kf5 {[%emt 0:00:00]} 41. Kf3 {[%emt 0:02:00]} Ne1+ {[%emt 0:01:09]} 42. Kg3 {[%emt 0:00:05]} Nc2 {[%emt 0:01:20]} 43. e4+ {[%emt 0:00:09]} Kf6 {[%emt 0:00:31]} 44. Nb1 {[%emt 0:00:08]} b6 {[%emt 0:01:43]} 45. Kf2 {[%emt 0:00:48]} g6 {[%emt 0:06:05]} 46. hxg6 {[%emt 0:00:56]} Kxg6 {[%emt 0:00:03]} 47. Kg3 {[%emt 0:01:13]} c5 {[%emt 0:00:58]} 48. Kh4 {[%emt 0:00:26]} cxb4 {[%emt 0:01:25]} 49. axb4 {[%emt 0:00:05]} Nxb4 {[%emt 0:01:39]} 50. Nc3 {[%emt 0:00:07]} Nd3 {[%emt 0:00:26]} 51. f5+ {[%emt 0:00:07]} Kf6 {[%emt 0:01:54]} 52. Nxb5 {[%emt 0:00:54]} Nf2 $2 {[%emt 0:03:10]} (52... Ke5 53. Kh5 Nc5) 53. Nc3 {[%emt 0:00:40]} b5 {[%emt 0:02:48]} (53... Ke5 $17 54. Kh5 Nxe4 55. Nxe4 Kxe4) 54. Nxb5 {[%emt 0:00:45]} (54. Kg3 $11 Nd3 55. Nxb5) 54... Nxe4 {[%emt 0:00:07]} 55. Kh5 {[%emt 0:02:27] [#]} Kxf5 $2 {[%emt 0:00:10]} (55... Kg7 $1 $19 56. Kg4 c3) 56. Kxh6 {[%emt 0:00:40]} (56. Na3 $1 $11) 56... Ke5 {[%emt 0:00:23]} 57. Kh5 {[%emt 0:01:25]} Nd6 {[%emt 0:01:30]} 58. Nc3 {[%emt 0:02:34]} Kd4 {[%emt 0:00:06]} 59. Ne2+ $2 {[%emt 0:00:42]} (59. Na2 $15) 59... Kd3 {[%emt 0:00:58]} 60. Nf4+ {[%emt 0:00:16]} Ke4 {[%emt 0:01:14]} 61. Ne2 {[%emt 0:00:17] [#]} Nb5 $1 {[%emt 0:00:17]} 62. Kg4 {[%emt 0:00:35]} Ke3 {[%emt 0:00:24]} 63. Nf4 {[%emt 0:00:17]} Nc7 {[%emt 0:00:27]} 64. Ng2+ {[%emt 0:02:25]} Kf2 {[%emt 0:02:27]} 65. Nf4 {[%emt 0:00:14] [#]} c3 $1 {[%emt 0:00:13]} 66. Nd3+ {[%emt 0:00:15]} Ke3 {[%emt 0:00:16]} (66... Ke2 $142 67. Nb4 {[#]} Na6 $1 {[%mdl 512]} 68. Na2 c2 69. Nc1+ Ke3 70. Kf5 Kd2 71. Nb3+ Kc3 72. Nc1 Nc5 73. Kg5 Nb3 74. Ne2+ Kd2 75. Nf4 c1=Q 76. Nh5 Nd4 77. Kg6 Qc6+ 78. Nf6 Qe6 $1 {[%mdl 512]} 79. Kg7 Ke1 80. Kg6 Nf3 81. Kh7 Qxf6 82. Kg8 Ne5 83. Kh7 Qg6+ 84. Kh8 Nf7#) 67. Nc1 {[%emt 0:01:00]} c2 {[%emt 0:00:59]} 68. Kf5 {[%emt 0:00:29]} Kd2 {[%emt 0:02:59]} 69. Nb3+ {[%emt 0:00:09]} Kc3 {[%emt 0:00:15]} 70. Nc1 {[%emt 0:00:14]} Kd2 $2 {[%emt 0:05:22]} (70... Nb5 $19 71. Ke4 Kd2 72. Nb3+ Kd1) 71. Nb3+ {[%emt 0:00:02]} Kd1 {[%emt 0:00:08]} (71... Kd3 $142 72. Kf4 Nd5+ 73. Kf3 Kc3 74. Nc1 Kb2 75. Ne2 Nc3 76. Nf4 Kb1 77. Nd3 Nd1 78. Kg4 Nb2 79. Nf4 c1=Q 80. Kf5 Qc5+ 81. Kf6 {[#]} Qf2 $1 {[%mdl 512]} 82. Ke5 Nc4+ 83. Ke4 Qe3+ 84. Kf5 Qf3 $1 {[%mdl 512]} 85. Kg5 Ne3 86. Kf6 Qxf4+ 87. Ke6 Qd4 88. Kf7 Qd6 89. Kg7 Nf5+ 90. Kf7 Qc6 91. Kf8 Qf6+ 92. Kg8 Qg7#) 72. Ke5 {[%emt 0:01:21]} Nb5 {[%emt 0:00:30]} 73. Kd5 {[%emt 0:02:02]} Nc3+ {[%emt 0:00:21]} 74. Kc4 {[%emt 0:00:07]} Ne4 $19 {[%emt 0:00:29]} 0-1